[Event "Titled Tuesday Blitz July 11 Late 2023"]
[White "Buchenau, Frank"]
[Black "Cardenas Carbajal, Nilson"]
[WhiteFideId "4604350"]
[BlackFideId "8401128"]
[WhiteElo "2389"]
[BlackElo "2174"]
[Result "1-0"]
[Round "7"]
[TimeControl "180+2"]
[Date "2023.07.11"]
[WhiteClock "0:02:12"]
[BlackClock "0:00:00"]
[Board "126"]

1. e4 {[%clk 0:03:00]}  e5 {[%clk 0:02:58]} 2. Nf3 {[%clk 0:03:00]}  Nc6 {[%clk 0:02:58]} 3. Bb5 {[%clk 0:02:59]}  a6 {[%clk 0:02:58]} 4. Ba4 {[%clk 0:02:59]}  Nf6 {[%clk 0:02:57]} 5. d3 {[%clk 0:02:59]}  Bc5 {[%clk 0:02:50]} 6. O-O {[%clk 0:02:59]}  d6 {[%clk 0:02:45]} 7. c3 {[%clk 0:02:57]}  b5 {[%clk 0:02:37]} 8. Bc2 {[%clk 0:02:54]}  Bb6 {[%clk 0:02:25]} 9. Nbd2 {[%clk 0:02:52]}  O-O {[%clk 0:02:23]} 10. Re1 {[%clk 0:02:52]}  Ne7 {[%clk 0:02:17]} 11. d4 {[%clk 0:02:49]}  Ng6 {[%clk 0:02:13]} 12. h3 {[%clk 0:02:44]}  c6 {[%clk 0:02:00]} 13. Nf1 {[%clk 0:02:43]}  Re8 {[%clk 0:01:57]} 14. Ng3 {[%clk 0:02:43]}  h6 {[%clk 0:01:56]} 15. a4 {[%clk 0:02:39]}  Be6 {[%clk 0:01:48]} 16. Be3 {[%clk 0:02:38]}  Qc7 {[%clk 0:01:30]} 17. Qd2 {[%clk 0:02:30]}  Rab8 {[%clk 0:01:00]} 18. Nf5 {[%clk 0:02:29]}  Bxf5 {[%clk 0:00:50]} 19. exf5 {[%clk 0:02:28]}  Ne7 {[%clk 0:00:25]} 20. Bxh6 {[%clk 0:02:20]}  e4 {[%clk 0:00:13]} 21. Qg5 {[%clk 0:02:15]}  Nxf5 {[%clk 0:00:00]} 22. Qxf5 {[%clk 0:02:12]} 1-0


[Site "https://www.chess.com"]

[Event "Titled Tuesday Blitz July 11 Late 2023"]
[White "Carrasco Miranda, Andres"]
[Black "Vila Dupla, Aurelio"]
[WhiteFideId "3405990"]
[BlackFideId "2203383"]
[WhiteElo "2388"]
[BlackElo "2172"]
[Result "1-0"]
[Round "7"]
[TimeControl "180+2"]
[Date "2023.07.11"]
[WhiteClock "0:00:19"]
[BlackClock "0:00:03"]
[Board "127"]

1. d4 {[%clk 0:02:57]}  Nf6 {[%clk 0:02:58]} 2. c4 {[%clk 0:02:57]}  g6 {[%clk 0:02:58]} 3. g3 {[%clk 0:02:57]}  c6 {[%clk 0:02:56]} 4. Bg2 {[%clk 0:02:55]}  d5 {[%clk 0:02:57]} 5. Qa4 {[%clk 0:02:54]}  Bg7 {[%clk 0:02:50]} 6. cxd5 {[%clk 0:02:54]}  Nxd5 {[%clk 0:02:50]} 7. Nf3 {[%clk 0:02:53]}  O-O {[%clk 0:02:49]} 8. O-O {[%clk 0:02:53]}  Nb6 {[%clk 0:02:49]} 9. Qd1 {[%clk 0:02:49]}  Be6 {[%clk 0:02:44]} 10. Nc3 {[%clk 0:02:48]}  Qc8 {[%clk 0:02:44]} 11. Bg5 {[%clk 0:02:40]}  Re8 {[%clk 0:02:39]} 12. Rc1 {[%clk 0:02:37]}  Bh3 {[%clk 0:02:38]} 13. e4 {[%clk 0:02:32]}  Bxg2 {[%clk 0:02:26]} 14. Kxg2 {[%clk 0:02:33]}  h6 {[%clk 0:02:23]} 15. Bf4 {[%clk 0:02:30]}  N8d7 {[%clk 0:02:17]} 16. e5 {[%clk 0:02:24]}  Nf8 {[%clk 0:02:08]} 17. b3 {[%clk 0:02:12]}  Rd8 {[%clk 0:02:03]} 18. Qd2 {[%clk 0:02:09]}  Kh7 {[%clk 0:02:02]} 19. Rfd1 {[%clk 0:02:09]}  Nd5 {[%clk 0:02:02]} 20. Nxd5 {[%clk 0:02:08]}  Rxd5 {[%clk 0:02:02]} 21. Qc2 {[%clk 0:01:54]}  Ne6 {[%clk 0:01:59]} 22. Be3 {[%clk 0:01:54]}  Qd7 {[%clk 0:01:57]} 23. h4 {[%clk 0:01:26]}  h5 {[%clk 0:01:50]} 24. Qe4 {[%clk 0:01:23]}  Rd8 {[%clk 0:01:46]} 25. g4 {[%clk 0:01:17]}  hxg4 {[%clk 0:00:58]} 26. Qxg4 {[%clk 0:01:18]}  c5 {[%clk 0:00:57]} 27. h5 {[%clk 0:01:11]}  cxd4 {[%clk 0:00:38]} 28. hxg6+ {[%clk 0:01:08]}  fxg6 {[%clk 0:00:38]} 29. Rh1+ {[%clk 0:01:01]}  Kg8 {[%clk 0:00:38]} 30. Bh6 {[%clk 0:00:53]}  Nf8 {[%clk 0:00:17]} 31. Qh4 {[%clk 0:00:39]}  Qf5 {[%clk 0:00:03]} 32. Bxg7 {[%clk 0:00:36]}  Kxg7 {[%clk 0:00:03]} 33. Qxe7+ {[%clk 0:00:30]}  Qf7 {[%clk 0:00:03]} 34. Qh4 {[%clk 0:00:20]}  R8d7 {[%clk 0:00:03]} 35. Qh8# {[%clk 0:00:19]} 1-0


[Site "https://www.chess.com"]

[Event "Titled Tuesday Blitz July 11 Late 2023"]
[White "dodoucb"]
[Black "Ricaurte Lopez, Juan Carlos"]
[BlackFideId "3600327"]
[WhiteElo "2376"]
[BlackElo "2134"]
[Result "1-0"]
[Round "7"]
[TimeControl "180+2"]
[Date "2023.07.11"]
[WhiteClock "0:00:08"]
[BlackClock "0:00:07"]
[Board "129"]

1. e4 {[%clk 0:02:59]}  e5 {[%clk 0:02:52]} 2. Nf3 {[%clk 0:02:58]}  d5 {[%clk 0:02:50]} 3. exd5 {[%clk 0:02:52]}  e4 {[%clk 0:02:48]} 4. Ne5 {[%clk 0:02:26]}  Qxd5 {[%clk 0:02:40]} 5. Nc4 {[%clk 0:02:26]}  Nf6 {[%clk 0:02:36]} 6. Nc3 {[%clk 0:02:24]}  Qf5 {[%clk 0:02:34]} 7. Ne3 {[%clk 0:02:21]}  Qe5 {[%clk 0:02:30]} 8. d4 {[%clk 0:02:19]}  exd3 {[%clk 0:02:28]} 9. Bxd3 {[%clk 0:02:14]}  Bd6 {[%clk 0:02:24]} 10. Nb5 {[%clk 0:01:59]}  O-O {[%clk 0:02:16]} 11. Nxd6 {[%clk 0:01:58]}  Qxd6 {[%clk 0:02:15]} 12. O-O {[%clk 0:01:58]}  Nc6 {[%clk 0:02:11]} 13. Nf5 {[%clk 0:01:49]}  Bxf5 {[%clk 0:02:03]} 14. Bxf5 {[%clk 0:01:49]}  Nd4 {[%clk 0:02:00]} 15. Bd3 {[%clk 0:01:45]}  Rad8 {[%clk 0:01:58]} 16. Bg5 {[%clk 0:01:39]}  c5 {[%clk 0:01:51]} 17. Bxf6 {[%clk 0:01:23]}  Qxf6 {[%clk 0:01:48]} 18. Qh5 {[%clk 0:01:23]}  g6 {[%clk 0:01:32]} 19. Qxc5 {[%clk 0:01:22]}  b6 {[%clk 0:01:29]} 20. Qc7 {[%clk 0:01:11]}  Rc8 {[%clk 0:01:18]} 21. Qxa7 {[%clk 0:01:10]}  Nxc2 {[%clk 0:01:18]} 22. Bxc2 {[%clk 0:01:10]}  Rxc2 {[%clk 0:01:17]} 23. b3 {[%clk 0:01:08]}  Rxf2 {[%clk 0:01:15]} 24. Rxf2 {[%clk 0:01:05]}  Qxa1+ {[%clk 0:01:14]} 25. Rf1 {[%clk 0:01:06]}  Qd4+ {[%clk 0:01:09]} 26. Kh1 {[%clk 0:01:06]}  Qd3 {[%clk 0:01:03]} 27. Kg1 {[%clk 0:00:59]}  Qe3+ {[%clk 0:01:00]} 28. Kh1 {[%clk 0:00:58]}  Qd3 {[%clk 0:01:00]} 29. Re1 {[%clk 0:00:56]}  b5 {[%clk 0:00:56]} 30. h3 {[%clk 0:00:32]}  Rc8 {[%clk 0:00:50]} 31. a4 {[%clk 0:00:19]}  Qxb3 {[%clk 0:00:45]} 32. Qb7 {[%clk 0:00:19]}  Qc3 {[%clk 0:00:36]} 33. Rf1 {[%clk 0:00:15]}  bxa4 {[%clk 0:00:34]} 34. Qxf7+ {[%clk 0:00:11]}  Kh8 {[%clk 0:00:33]} 35. Qe7 {[%clk 0:00:08]}  a3 {[%clk 0:00:07]} 36. Rf8+ {[%clk 0:00:08]} 1-0


[Site "https://www.chess.com"]

[Event "Titled Tuesday Blitz July 11 Late 2023"]
[White "Upper, John"]
[Black "EsmeraldasAnderson03"]
[WhiteFideId "2606437"]
[WhiteElo "2007"]
[BlackElo "2374"]
[Result "0-1"]
[Round "7"]
[TimeControl "180+2"]
[Date "2023.07.11"]
[WhiteClock "0:00:00"]
[BlackClock "0:00:11"]
[Board "130"]

1. d4 {[%clk 0:02:59]}  d5 {[%clk 0:02:59]} 2. Nf3 {[%clk 0:02:58]}  Nf6 {[%clk 0:02:56]} 3. e3 {[%clk 0:02:55]}  c5 {[%clk 0:02:55]} 4. c4 {[%clk 0:02:54]}  dxc4 {[%clk 0:02:52]} 5. Bxc4 {[%clk 0:02:52]}  a6 {[%clk 0:02:52]} 6. a4 {[%clk 0:02:49]}  e6 {[%clk 0:02:52]} 7. O-O {[%clk 0:02:47]}  Nc6 {[%clk 0:02:52]} 8. Nc3 {[%clk 0:02:45]}  cxd4 {[%clk 0:02:49]} 9. exd4 {[%clk 0:02:42]}  Be7 {[%clk 0:02:49]} 10. Re1 {[%clk 0:02:28]}  O-O {[%clk 0:02:49]} 11. Qe2 {[%clk 0:02:27]}  Nb4 {[%clk 0:02:48]} 12. b3 {[%clk 0:02:12]}  b6 {[%clk 0:02:36]} 13. Ne4 {[%clk 0:01:55]}  Bb7 {[%clk 0:02:31]} 14. Nxf6+ {[%clk 0:01:55]}  Bxf6 {[%clk 0:02:32]} 15. Bb2 {[%clk 0:01:52]}  Bd5 {[%clk 0:02:20]} 16. Rad1 {[%clk 0:01:37]}  Qd7 {[%clk 0:02:17]} 17. Ne5 {[%clk 0:01:34]}  Qb7 {[%clk 0:02:17]} 18. Ba3 {[%clk 0:01:22]}  Be7 {[%clk 0:02:05]} 19. f4 {[%clk 0:01:14]}  Rfd8 {[%clk 0:01:52]} 20. f5 {[%clk 0:01:00]}  exf5 {[%clk 0:01:51]} 21. Nxf7 {[%clk 0:00:49]}  Kxf7 {[%clk 0:01:43]} 22. Bxd5+ {[%clk 0:00:44]}  Nxd5 {[%clk 0:01:38]} 23. Qe6+ {[%clk 0:00:39]}  Ke8 {[%clk 0:01:18]} 24. Re5 {[%clk 0:00:20]}  Kf8 {[%clk 0:00:52]} 25. Rxd5 {[%clk 0:00:10]}  Qxd5 {[%clk 0:00:11]} 26. Qxe7+ {[%clk 0:00:09]}  Kg8 {[%clk 0:00:11]} 27. Re1 {[%clk 0:00:09]}  Qxd4+ {[%clk 0:00:10]} 28. Kh1 {[%clk 0:00:08]}  Qf6 {[%clk 0:00:10]} 29. Qxf6 {[%clk 0:00:06]}  gxf6 {[%clk 0:00:11]} 30. h3 {[%clk 0:00:05]}  Rd7 {[%clk 0:00:10]} 31. Re6 {[%clk 0:00:04]}  Rb8 {[%clk 0:00:10]} 32. Bb2 {[%clk 0:00:03]}  b5 {[%clk 0:00:11]} 33. axb5 {[%clk 0:00:03]}  Rxb5 {[%clk 0:00:11]} 34. Bxf6 {[%clk 0:00:00]}  Rxb3 {[%clk 0:00:11]} 0-1


[Site "https://www.chess.com"]

[Event "Titled Tuesday Blitz July 11 Late 2023"]
[White "Balla, Tamas-Kristof"]
[Black "Bazzano, Sebastian"]
[WhiteFideId "1208497"]
[BlackFideId "104566"]
[WhiteElo "2379"]
[BlackElo "2217"]
[Result "0-1"]
[Round "7"]
[TimeControl "180+2"]
[Date "2023.07.11"]
[WhiteClock "0:00:01"]
[BlackClock "0:00:41"]
[Board "134"]

1. e4 {[%clk 0:02:57]}  e6 {[%clk 0:02:57]} 2. d4 {[%clk 0:02:57]}  d5 {[%clk 0:02:57]} 3. Nd2 {[%clk 0:02:58]}  dxe4 {[%clk 0:02:57]} 4. Nxe4 {[%clk 0:02:59]}  Bd7 {[%clk 0:02:57]} 5. Nf3 {[%clk 0:02:56]}  Bc6 {[%clk 0:02:57]} 6. Bd3 {[%clk 0:02:56]}  Bxe4 {[%clk 0:02:57]} 7. Bxe4 {[%clk 0:02:55]}  c6 {[%clk 0:02:57]} 8. O-O {[%clk 0:02:51]}  Nf6 {[%clk 0:02:57]} 9. Bd3 {[%clk 0:02:51]}  Bd6 {[%clk 0:02:56]} 10. c3 {[%clk 0:02:51]}  Nbd7 {[%clk 0:02:55]} 11. Bg5 {[%clk 0:02:49]}  Qc7 {[%clk 0:02:55]} 12. Qe2 {[%clk 0:02:47]}  O-O {[%clk 0:02:55]} 13. h3 {[%clk 0:02:47]}  Rfe8 {[%clk 0:02:54]} 14. Rfe1 {[%clk 0:02:46]}  Bf4 {[%clk 0:02:53]} 15. Rad1 {[%clk 0:02:40]}  Bxg5 {[%clk 0:02:52]} 16. Nxg5 {[%clk 0:02:41]}  Nf8 {[%clk 0:02:48]} 17. Nf3 {[%clk 0:02:37]}  Rad8 {[%clk 0:02:47]} 18. Ne5 {[%clk 0:02:37]}  Ng6 {[%clk 0:02:46]} 19. Qf3 {[%clk 0:02:28]}  a6 {[%clk 0:02:31]} 20. Qg3 {[%clk 0:01:50]}  Nxe5 {[%clk 0:02:22]} 21. Rxe5 {[%clk 0:01:48]}  Nd7 {[%clk 0:02:07]} 22. Bxh7+ {[%clk 0:01:20]}  Kf8 {[%clk 0:02:06]} 23. Rg5 {[%clk 0:01:03]}  Qxg3 {[%clk 0:02:03]} 24. Rxg3 {[%clk 0:01:04]}  g6 {[%clk 0:02:00]} 25. Rdd3 {[%clk 0:00:46]}  Kg7 {[%clk 0:01:53]} 26. Rdf3 {[%clk 0:00:46]}  Nf8 {[%clk 0:01:43]} 27. Bxg6 {[%clk 0:00:37]}  fxg6 {[%clk 0:01:36]} 28. h4 {[%clk 0:00:37]}  Rd5 {[%clk 0:01:35]} 29. Rf4 {[%clk 0:00:34]}  Rf5 {[%clk 0:01:26]} 30. Re4 {[%clk 0:00:33]}  Re7 {[%clk 0:01:12]} 31. Rge3 {[%clk 0:00:33]}  Ref7 {[%clk 0:01:12]} 32. f3 {[%clk 0:00:32]}  Rf4 {[%clk 0:01:11]} 33. Re5 {[%clk 0:00:32]}  Rxh4 {[%clk 0:01:10]} 34. a4 {[%clk 0:00:23]}  Rf5 {[%clk 0:01:09]} 35. b4 {[%clk 0:00:18]}  Rxe5 {[%clk 0:01:08]} 36. Rxe5 {[%clk 0:00:19]}  Rh5 {[%clk 0:00:59]} 37. Re4 {[%clk 0:00:18]}  a5 {[%clk 0:00:57]} 38. Kf2 {[%clk 0:00:18]}  axb4 {[%clk 0:00:57]} 39. cxb4 {[%clk 0:00:18]}  Rd5 {[%clk 0:00:57]} 40. Ke3 {[%clk 0:00:18]}  Kf7 {[%clk 0:00:53]} 41. Kd3 {[%clk 0:00:15]}  Nd7 {[%clk 0:00:53]} 42. Rh4 {[%clk 0:00:12]}  e5 {[%clk 0:00:46]} 43. Rh7+ {[%clk 0:00:08]}  Ke6 {[%clk 0:00:46]} 44. Kc3 {[%clk 0:00:07]}  exd4+ {[%clk 0:00:44]} 45. Kc4 {[%clk 0:00:01]}  d3 {[%clk 0:00:41]} 0-1


[Site "https://www.chess.com"]

[Event "Titled Tuesday Blitz July 11 Late 2023"]
[White "Sainz Aguirre, Ignacio"]
[Black "Kirillov, Dmitry"]
[WhiteFideId "5101727"]
[BlackFideId "34180572"]
[WhiteElo "1997"]
[BlackElo "2520"]
[Result "0-1"]
[Round "7"]
[TimeControl "180+2"]
[Date "2023.07.11"]
[WhiteClock "0:00:00"]
[BlackClock "0:01:26"]
[Board "139"]

1. e4 {[%clk 0:03:00]}  e5 {[%clk 0:02:59]} 2. Nf3 {[%clk 0:03:00]}  f5 {[%clk 0:02:59]} 3. Nxe5 {[%clk 0:02:53]}  Nf6 {[%clk 0:02:56]} 4. d4 {[%clk 0:02:43]}  fxe4 {[%clk 0:02:56]} 5. Nc3 {[%clk 0:02:39]}  d5 {[%clk 0:02:56]} 6. f3 {[%clk 0:02:34]}  exf3 {[%clk 0:02:46]} 7. Nxf3 {[%clk 0:02:23]}  Bg4 {[%clk 0:02:43]} 8. Be2 {[%clk 0:02:23]}  Bd6 {[%clk 0:02:43]} 9. O-O {[%clk 0:02:19]}  O-O {[%clk 0:02:43]} 10. h3 {[%clk 0:02:12]}  Bxf3 {[%clk 0:02:41]} 11. Bxf3 {[%clk 0:02:11]}  c6 {[%clk 0:02:41]} 12. Ne2 {[%clk 0:02:06]}  Nbd7 {[%clk 0:02:41]} 13. c3 {[%clk 0:02:06]}  a5 {[%clk 0:02:29]} 14. Bg5 {[%clk 0:02:04]}  a4 {[%clk 0:02:29]} 15. Qd2 {[%clk 0:02:02]}  a3 {[%clk 0:02:29]} 16. b3 {[%clk 0:01:58]}  h6 {[%clk 0:02:29]} 17. Bf4 {[%clk 0:01:45]}  Bxf4 {[%clk 0:02:22]} 18. Nxf4 {[%clk 0:01:45]}  Re8 {[%clk 0:02:16]} 19. Rae1 {[%clk 0:01:43]}  Qc7 {[%clk 0:02:15]} 20. c4 {[%clk 0:01:07]}  dxc4 {[%clk 0:02:07]} 21. bxc4 {[%clk 0:01:06]}  Rxe1 {[%clk 0:02:04]} 22. Rxe1 {[%clk 0:01:03]}  Qa5 {[%clk 0:02:05]} 23. Qxa5 {[%clk 0:00:58]}  Rxa5 {[%clk 0:02:05]} 24. Rb1 {[%clk 0:00:29]}  Ra4 {[%clk 0:01:50]} 25. Rxb7 {[%clk 0:00:18]}  Rxc4 {[%clk 0:01:48]} 26. Ne6 {[%clk 0:00:18]}  Rc2 {[%clk 0:01:42]} 27. Ra7 {[%clk 0:00:14]}  Rxa2 {[%clk 0:01:40]} 28. Bxc6 {[%clk 0:00:14]}  Ra1+ {[%clk 0:01:35]} 29. Kh2 {[%clk 0:00:13]}  a2 {[%clk 0:01:36]} 30. Kg3 {[%clk 0:00:08]}  Rc1 {[%clk 0:01:28]} 31. Rxa2 {[%clk 0:00:04]}  Rxc6 {[%clk 0:01:27]} 32. d5 {[%clk 0:00:00]}  Nxd5 {[%clk 0:01:26]} 0-1


[Site "https://www.chess.com"]

[Event "Titled Tuesday Blitz July 11 Late 2023"]
[White "Elaisaz"]
[Black "Tsukerman, Julia"]
[BlackFideId "2621649"]
[WhiteElo "2268"]
[BlackElo "2084"]
[Result "1-0"]
[Round "7"]
[TimeControl "180+2"]
[Date "2023.07.11"]
[WhiteClock "0:00:08"]
[BlackClock "0:00:00"]
[Board "145"]

1. b3 {[%clk 0:03:00]}  d5 {[%clk 0:02:58]} 2. Bb2 {[%clk 0:03:01]}  e6 {[%clk 0:02:55]} 3. g3 {[%clk 0:03:01]}  Nf6 {[%clk 0:02:54]} 4. Bg2 {[%clk 0:03:02]}  Be7 {[%clk 0:02:51]} 5. c4 {[%clk 0:03:02]}  O-O {[%clk 0:02:48]} 6. Nf3 {[%clk 0:03:02]}  a6 {[%clk 0:02:38]} 7. O-O {[%clk 0:03:00]}  Nbd7 {[%clk 0:02:28]} 8. e3 {[%clk 0:02:59]}  b6 {[%clk 0:02:26]} 9. Nc3 {[%clk 0:02:58]}  Bb7 {[%clk 0:02:25]} 10. Qc2 {[%clk 0:02:51]}  Rc8 {[%clk 0:02:21]} 11. Rac1 {[%clk 0:02:49]}  c5 {[%clk 0:02:19]} 12. Qb1 {[%clk 0:02:46]}  Qc7 {[%clk 0:02:09]} 13. cxd5 {[%clk 0:02:46]}  Nxd5 {[%clk 0:02:04]} 14. Nxd5 {[%clk 0:02:44]}  exd5 {[%clk 0:01:54]} 15. d4 {[%clk 0:02:43]}  Qd6 {[%clk 0:01:47]} 16. Ba3 {[%clk 0:02:42]}  Qf6 {[%clk 0:01:37]} 17. Rfd1 {[%clk 0:02:35]}  Rfd8 {[%clk 0:01:20]} 18. h4 {[%clk 0:02:34]}  h6 {[%clk 0:01:19]} 19. Nh2 {[%clk 0:02:13]}  Qe6 {[%clk 0:00:51]} 20. Rd2 {[%clk 0:01:51]}  g6 {[%clk 0:00:31]} 21. dxc5 {[%clk 0:01:43]}  bxc5 {[%clk 0:00:27]} 22. Rcd1 {[%clk 0:01:43]}  Nf6 {[%clk 0:00:20]} 23. Nf3 {[%clk 0:01:35]}  Ne4 {[%clk 0:00:17]} 24. Rc2 {[%clk 0:01:27]}  Bf6 {[%clk 0:00:15]} 25. Nd2 {[%clk 0:01:21]}  Nc3 {[%clk 0:00:15]} 26. Rxc3 {[%clk 0:01:20]}  Bxc3 {[%clk 0:00:15]} 27. Qc2 {[%clk 0:01:18]}  Bg7 {[%clk 0:00:14]} 28. Bxc5 {[%clk 0:01:16]}  Bf8 {[%clk 0:00:14]} 29. b4 {[%clk 0:01:15]}  a5 {[%clk 0:00:14]} 30. a3 {[%clk 0:01:15]}  axb4 {[%clk 0:00:15]} 31. axb4 {[%clk 0:01:16]}  Bxc5 {[%clk 0:00:14]} 32. bxc5 {[%clk 0:01:16]}  Qc6 {[%clk 0:00:14]} 33. Nb3 {[%clk 0:01:16]}  Kg7 {[%clk 0:00:13]} 34. Qc3+ {[%clk 0:01:12]}  Kg8 {[%clk 0:00:12]} 35. Rc1 {[%clk 0:01:08]}  Ba6 {[%clk 0:00:10]} 36. Nd4 {[%clk 0:01:07]}  Qa4 {[%clk 0:00:09]} 37. Ra1 {[%clk 0:01:05]}  Qc4 {[%clk 0:00:09]} 38. Qxc4 {[%clk 0:01:03]}  Bxc4 {[%clk 0:00:09]} 39. c6 {[%clk 0:01:03]}  Kg7 {[%clk 0:00:09]} 40. Ra7 {[%clk 0:01:01]}  Kf6 {[%clk 0:00:09]} 41. Bh3 {[%clk 0:00:49]}  Ra8 {[%clk 0:00:08]} 42. Rxa8 {[%clk 0:00:48]}  Rxa8 {[%clk 0:00:08]} 43. c7 {[%clk 0:00:47]}  Ba6 {[%clk 0:00:09]} 44. Nb5 {[%clk 0:00:36]}  Bc8 {[%clk 0:00:09]} 45. Bg2 {[%clk 0:00:29]}  Bb7 {[%clk 0:00:08]} 46. Nd6 {[%clk 0:00:28]}  Bc8 {[%clk 0:00:04]} 47. Bxd5 {[%clk 0:00:27]}  Ra1+ {[%clk 0:00:04]} 48. Kg2 {[%clk 0:00:26]}  Bd7 {[%clk 0:00:04]} 49. c8=Q {[%clk 0:00:23]}  Bxc8 {[%clk 0:00:04]} 50. Nxc8 {[%clk 0:00:23]}  Rc1 {[%clk 0:00:04]} 51. Nb6 {[%clk 0:00:22]}  Rb1 {[%clk 0:00:03]} 52. Nc4 {[%clk 0:00:21]}  Rd1 {[%clk 0:00:01]} 53. Bf3 {[%clk 0:00:19]}  Rc1 {[%clk 0:00:02]} 54. Nd6 {[%clk 0:00:18]}  Rd1 {[%clk 0:00:02]} 55. Ne4+ {[%clk 0:00:18]}  Kg7 {[%clk 0:00:01]} 56. g4 {[%clk 0:00:17]}  Rd8 {[%clk 0:00:01]} 57. Be2 {[%clk 0:00:15]}  Re8 {[%clk 0:00:01]} 58. Kf3 {[%clk 0:00:15]}  f6 {[%clk 0:00:01]} 59. Bc4 {[%clk 0:00:13]}  Re7 {[%clk 0:00:02]} 60. Kg3 {[%clk 0:00:12]}  Rc7 {[%clk 0:00:02]} 61. f4 {[%clk 0:00:12]}  Re7 {[%clk 0:00:02]} 62. Kf3 {[%clk 0:00:12]}  Rc7 {[%clk 0:00:03]} 63. Bd5 {[%clk 0:00:11]}  Rd7 {[%clk 0:00:03]} 64. Bc6 {[%clk 0:00:11]}  Rc7 {[%clk 0:00:03]} 65. Bb5 {[%clk 0:00:10]}  Rb7 {[%clk 0:00:03]} 66. Be2 {[%clk 0:00:11]}  Rb2 {[%clk 0:00:02]} 67. g5 {[%clk 0:00:10]}  f5 {[%clk 0:00:01]} 68. Nd6 {[%clk 0:00:09]}  hxg5 {[%clk 0:00:01]} 69. hxg5 {[%clk 0:00:08]}  Rb6 {[%clk 0:00:01]} 70. Nc4 {[%clk 0:00:08]}  Rb7 {[%clk 0:00:01]} 71. Ne5 {[%clk 0:00:09]}  Rc7 {[%clk 0:00:01]} 72. Bb5 {[%clk 0:00:08]}  Rb7 {[%clk 0:00:00]} 73. Be8 {[%clk 0:00:08]} 1-0


[Site "https://www.chess.com"]

[Event "Titled Tuesday Blitz July 11 Late 2023"]
[White "arturdailima"]
[Black "Semenova, Alina"]
[BlackFideId "24113875"]
[WhiteElo "2242"]
[BlackElo "2063"]
[Result "1-0"]
[Round "7"]
[TimeControl "180+2"]
[Date "2023.07.11"]
[WhiteClock "0:02:36"]
[BlackClock "0:02:49"]
[Board "146"]

1. a3 {[%clk 0:03:00]}  Nf6 {[%clk 0:02:59]} 2. d4 {[%clk 0:03:00]}  d6 {[%clk 0:03:00]} 3. Nf3 {[%clk 0:02:58]}  g6 {[%clk 0:03:01]} 4. c4 {[%clk 0:02:57]}  Bg7 {[%clk 0:03:02]} 5. Nc3 {[%clk 0:02:58]}  e6 {[%clk 0:03:00]} 6. e3 {[%clk 0:02:58]}  Nc6 {[%clk 0:03:01]} 7. Be2 {[%clk 0:02:58]}  Ne7 {[%clk 0:03:01]} 8. O-O {[%clk 0:02:55]}  O-O {[%clk 0:03:00]} 9. b4 {[%clk 0:02:55]}  b6 {[%clk 0:03:00]} 10. Bb2 {[%clk 0:02:55]}  c5 {[%clk 0:03:00]} 11. Qb3 {[%clk 0:02:46]}  Qc7 {[%clk 0:03:00]} 12. Rad1 {[%clk 0:02:44]}  Rb8 {[%clk 0:02:59]} 13. dxc5 {[%clk 0:02:38]}  bxc5 {[%clk 0:02:59]} 14. Nb5 {[%clk 0:02:38]}  Qb7 {[%clk 0:02:52]} 15. Nxd6 {[%clk 0:02:36]}  cxb4 {[%clk 0:02:49]} 16. Nxb7 {[%clk 0:02:36]} 1-0


[Site "https://www.chess.com"]

[Event "Titled Tuesday Blitz July 11 Late 2023"]
[White "Quirke, Jeffrey"]
[Black "Blackwhite017"]
[WhiteFideId "2013029"]
[WhiteElo "2238"]
[BlackElo "2014"]
[Result "1-0"]
[Round "7"]
[TimeControl "180+2"]
[Date "2023.07.11"]
[WhiteClock "0:02:01"]
[BlackClock "0:00:42"]
[Board "147"]

1. c4 {[%clk 0:03:00]}  c6 {[%clk 0:02:51]} 2. g3 {[%clk 0:03:00]}  d5 {[%clk 0:02:52]} 3. Bg2 {[%clk 0:03:00]}  Nf6 {[%clk 0:02:51]} 4. Nf3 {[%clk 0:03:00]}  g6 {[%clk 0:02:51]} 5. O-O {[%clk 0:03:01]}  Bg7 {[%clk 0:02:51]} 6. d3 {[%clk 0:02:49]}  O-O {[%clk 0:02:51]} 7. Nc3 {[%clk 0:02:49]}  Bg4 {[%clk 0:02:48]} 8. Qb3 {[%clk 0:02:48]}  Bxf3 {[%clk 0:02:10]} 9. Bxf3 {[%clk 0:02:45]}  dxc4 {[%clk 0:02:11]} 10. dxc4 {[%clk 0:02:42]}  Qb6 {[%clk 0:02:09]} 11. Be3 {[%clk 0:02:37]}  Qxb3 {[%clk 0:02:04]} 12. axb3 {[%clk 0:02:38]}  a6 {[%clk 0:02:02]} 13. Na4 {[%clk 0:02:34]}  Nbd7 {[%clk 0:01:59]} 14. Rfd1 {[%clk 0:02:28]}  Rad8 {[%clk 0:01:56]} 15. Nb6 {[%clk 0:02:19]}  Ne5 {[%clk 0:01:41]} 16. Bg2 {[%clk 0:02:12]}  Rfe8 {[%clk 0:01:26]} 17. Na4 {[%clk 0:02:10]}  Rd7 {[%clk 0:01:19]} 18. Rxd7 {[%clk 0:02:08]}  Nfxd7 {[%clk 0:01:16]} 19. Rd1 {[%clk 0:02:08]}  Nf6 {[%clk 0:01:11]} 20. h3 {[%clk 0:02:07]}  e6 {[%clk 0:00:55]} 21. Nc5 {[%clk 0:02:06]}  Rb8 {[%clk 0:00:42]} 22. f4 {[%clk 0:02:01]} 1-0


[Site "https://www.chess.com"]

[Event "Titled Tuesday Blitz July 11 Late 2023"]
[White "Kohler, Aran"]
[Black "Funderburg, John T"]
[WhiteFideId "1002856"]
[BlackFideId "2004992"]
[WhiteElo "2237"]
[BlackElo "1989"]
[Result "1-0"]
[Round "7"]
[TimeControl "180+2"]
[Date "2023.07.11"]
[WhiteClock "0:02:24"]
[BlackClock "0:00:33"]
[Board "148"]

1. e4 {[%clk 0:03:00]}  e6 {[%clk 0:02:50]} 2. d4 {[%clk 0:02:59]}  d5 {[%clk 0:02:44]} 3. Nc3 {[%clk 0:03:00]}  Nf6 {[%clk 0:02:41]} 4. Bg5 {[%clk 0:02:57]}  Bb4 {[%clk 0:02:41]} 5. e5 {[%clk 0:02:53]}  h6 {[%clk 0:02:41]} 6. exf6 {[%clk 0:02:50]}  hxg5 {[%clk 0:02:42]} 7. fxg7 {[%clk 0:02:50]}  Rg8 {[%clk 0:02:43]} 8. Qh5 {[%clk 0:02:47]}  Qf6 {[%clk 0:02:43]} 9. Nf3 {[%clk 0:02:45]}  Qxg7 {[%clk 0:02:43]} 10. O-O-O {[%clk 0:02:39]}  Bxc3 {[%clk 0:02:41]} 11. bxc3 {[%clk 0:02:38]}  Nc6 {[%clk 0:02:25]} 12. h4 {[%clk 0:02:32]}  g4 {[%clk 0:02:20]} 13. Ng5 {[%clk 0:02:32]}  Rh8 {[%clk 0:02:00]} 14. Qxg4 {[%clk 0:02:31]}  f6 {[%clk 0:01:57]} 15. Bd3 {[%clk 0:02:31]}  fxg5 {[%clk 0:01:54]} 16. hxg5 {[%clk 0:02:31]}  Rxh1 {[%clk 0:01:38]} 17. Rxh1 {[%clk 0:02:31]}  Bd7 {[%clk 0:01:39]} 18. Rh7 {[%clk 0:02:26]}  e5 {[%clk 0:00:33]} 19. Qh5+ {[%clk 0:02:24]} 1-0


[Site "https://www.chess.com"]